bitfinex/quotes_ETHUSD_20230404
["timestamp","ask_amount","ask_price","bid_price","bid_amount"]
[1680584725043,3.34461206,1804.8,1804.4,2.69660783]
[1680584725252,3.56624206,1804.8,1804.4,2.69660783]
[1680584725402,6.88624206,1804.8,1804.4,2.69660783]
[1680584725605,6.66661206,1804.8,1804.4,2.69660783]
[1680584725869,6.88824206,1804.8,1804.4,2.69660783]
[1680584726202,6.66661206,1804.8,1804.4,2.69660783]
[1680584726511,6.88824206,1804.8,1804.4,2.69660783]
[1680584727481,6.66661206,1804.8,1804.4,2.69660783]
[1680584729112,6.66661206,1804.8,1804.4,2.91828783]
[1680584729409,6.66661206,1804.8,1804.4,2.91827783]
[1680584731845,6.66661206,1804.8,1804.4,2.91828783]
[1680584733110,6.66661206,1804.8,1804.4,2.69660783]
[1680584733353,6.66661206,1804.8,1804.4,2.91827783]
[1680584737803,6.66661206,1804.8,1804.4,2.69660783]
[1680584738204,6.66661206,1804.8,1804.4,2.91827783]
[1680584738915,6.66661206,1804.8,1804.4,2.69660783]
[1680584739123,6.66661206,1804.8,1804.4,2.91827783]
[1680584739614,6.66661206,1804.8,1804.4,2.69660783]
[1680584739832,6.66661206,1804.8,1804.4,2.91827783]
[1680584743657,6.66661206,1804.8,1804.4,2.69660783]
[1680584743866,6.66661206,1804.8,1804.4,2.91827783]
[1680584746668,6.66661206,1804.8,1804.4,2.69660783]
[1680584746876,4.30664725,1804.7,1804.4,2.69660783]
[1680584747175,3.34461206,1804.7,1804.4,2.69660783]
[1680584747371,3.56625206,1804.7,1804.4,2.69660783]
[1680584747667,3.34461206,1804.7,1804.4,2.69660783]
[1680584751169,3.88837573,1804.7,1804.4,2.69660783]
[1680584752239,3.30978585,1804.7,1804.4,2.69660783]
[1680584752444,3.30978585,1804.7,1804.4,2.98923761]
[1680584752762,0.54376367,1804.7,1804.4,2.98923761]
[1680584752962,2.17024464,1804.9,1804.4,3.65426761]
[1680584753136,6.80311495,1804.9,1804.4,3.65426761]
[1680584753332,6.80511495,1804.9,1804.5,0.58708676]
[1680584753537,6.81331811,1804.9,1804.5,0.58708676]
[1680584753933,6.80511495,1804.9,1804.5,0.58708676]
[1680584754580,6.80511495,1804.9,1804.5,0.36542676]
[1680584759312,6.80511495,1804.9,1804.5,0.58708676]
[1680584759477,6.80511495,1804.9,1804.5,0.36542676]
[1680584762961,7.02672495,1804.9,1804.5,0.36542676]
[1680584764981,6.80511495,1804.9,1804.5,0.36542676]
[1680584767712,7.02673495,1804.9,1804.5,0.36542676]
[1680584769267,7.02673495,1804.9,1804.4,3.2209921]
[1680584771815,7.02673495,1804.9,1804.4,2.9993221]
[1680584772163,7.02673495,1804.9,1804.4,3.2209921]
[1680584774009,7.02673495,1804.9,1804.4,2.9993221]
[1680584774514,7.02673495,1804.9,1804.4,3.2209921]
[1680584775294,7.02673495,1804.9,1804.4,2.9993221]
[1680584775492,7.46996495,1804.9,1804.4,2.70669232]
[1680584775889,6.08602218,1804.8,1804.4,2.70669232]
[1680584776089,6.30965218,1804.8,1804.4,2.70669232]
[1680584777536,6.08802218,1804.8,1804.4,2.70669232]
[1680584777735,6.30965218,1804.8,1804.4,2.70669232]
[1680584782272,6.08802218,1804.8,1804.4,2.70669232]
[1680584784955,6.08802218,1804.8,1804.4,2.92836232]
[1680584786002,6.08802218,1804.8,1804.4,3.37172232]
[1680584787193,0.002,1804.8,1804.4,3.37172232]
[1680584787399,5.46059277,1804.9,1804.4,2.92836232]
[1680584787687,8.22661495,1804.9,1804.5,0.29283623]
[1680584787891,8.44822495,1804.9,1804.5,0.29283623]
[1680584793283,0.40428533,1804.8,1804.5,0.29283623]
[1680584794321,8.44822495,1804.9,1804.5,0.29283623]
[1680584795325,0.40693658,1804.8,1804.5,0.29283623]
[1680584796298,9.31610978,1804.9,1804.5,0.29283623]
[1680584796500,0.96194172,1804.8,1804.5,0.29283623]
[1680584797922,1.5405316,1804.8,1804.5,0.29283623]
[1680584808467,2.40841643,1804.8,1804.5,0.29283623]
[1680584808967,0.57858988,1804.8,1804.5,0.29283623]
[1680584809135,1.54058352,1804.8,1804.5,0.29283623]
[1680584810272,0.39451604,1804.7,1804.5,0.29283623]
[1680584815773,0.39451604,1804.7,1804.4,2.70669232]
[1680584816298,6.48053822,1804.7,1804.4,2.70669232]
[1680584816471,6.48253822,1804.7,1804.4,2.70669232]
[1680584816635,6.70417822,1804.7,1804.4,2.70669232]
[1680584816840,6.48253822,1804.7,1804.4,2.70669232]
[1680584817040,6.70417822,1804.7,1804.4,2.70669232]
[1680584817239,2.98767218,1804.6,1804.4,2.69660783]
[1680584818540,7.32957206,1804.6,1804.4,2.69660783]
[1680584818887,6.75298218,1804.6,1804.4,2.69660783]
[1680584819983,6.76590716,1804.6,1804.4,2.69660783]
[1680584821312,12.58690716,1804.6,1804.4,2.69660783]
[1680584822478,12.14359716,1804.6,1804.4,2.69660783]
[1680584825303,0.50163636,1804.5,1804.4,2.69660783]
[1680584825478,6.58765854,1804.5,1804.4,2.69329219]
[1680584825676,6.58965854,1804.5,1804.4,2.69329219]
[1680584829778,12.63231854,1804.5,1804.4,2.69329219]
[1680584830125,18.60194072,1804.5,1804.4,2.69329219]
[1680584830432,18.54226365,1804.5,1804.4,2.69329219]
[1680584830613,18.53406049,1804.5,1804.4,2.69329219]
[1680584830815,18.54226365,1804.5,1804.4,2.69329219]
[1680584834266,17.0018517,1804.5,1804.4,2.69329219]
[1680584840372,16.99364854,1804.5,1804.4,2.63609685]
[1680584841452,16.99364854,1804.5,1804.4,2.57916148]
[1680584842255,16.99364854,1804.5,1804.4,2.52248491]
[1680584843326,16.99364854,1804.5,1804.4,2.46641096]
[1680584844231,16.99364854,1804.5,1804.4,2.41059189]
[1680584845278,16.99364854,1804.5,1804.4,2.35502655]
[1680584846281,16.99364854,1804.5,1804.4,2.29971378]
[1680584846879,16.30564854,1804.5,1804.4,2.29971378]
[1680584847231,16.30564854,1804.5,1804.4,2.24465243]
[1680584848239,16.30564854,1804.5,1804.4,2.19016059]
[1680584849278,16.30564854,1804.5,1804.4,2.13591644]
[1680584849656,15.64065854,1804.5,1804.2,0.002]
[1680584849972,5.76602218,1804.4,1804.1,0.01008617]
[1680584850282,3.30776565,1804.4,1804.1,0.48622579]
[1680584850428,0.53974347,1804.4,1804.1,0.48822579]
[1680584850623,0.53974347,1804.4,1804.1,0.48622579]
[1680584850860,0.53974347,1804.4,1804.1,0.49222579]
[1680584851358,0.53974347,1804.4,1804.1,0.48622579]
[1680584851824,0.53974347,1804.4,1804.1,0.49022579]
[1680584852353,3.22166,1804.6,1804.1,0.71193579]
[1680584852555,5.98768218,1804.6,1804.2,0.07119358]
[1680584852769,5.76802218,1804.6,1804.2,0.29289358]
[1680584852929,0.002,1804.6,1804.2,0.29289358]
[1680584853137,3.87613722,1804.7,1804.4,0.051]
[1680584853371,6.6421594,1804.7,1804.4,0.051]
[1680584853556,6.6441594,1804.7,1804.4,0.051]
[1680584856393,0.51512757,1804.6,1804.4,0.051]
[1680584857339,6.6441594,1804.7,1804.4,0.051]
[1680584858259,6.6441594,1804.7,1804.4,2.451]
[1680584858591,6.6441594,1804.7,1804.4,2.718268]
[1680584858796,6.6441594,1804.7,1804.4,2.724268]
[1680584858948,6.6441594,1804.7,1804.4,0.324268]
[1680584859289,6.6441594,1804.7,1804.4,0.051]
[1680584860037,3.87813722,1804.7,1804.4,0.051]
[1680584860240,3.87613722,1804.7,1804.4,0.051]
[1680584861693,0.55613722,1804.7,1804.4,0.051]
[1680584862192,3.22163,1804.8,1804.4,0.051]
[1680584862496,5.98765218,1804.8,1804.4,0.051]
[1680584862665,5.98965218,1804.8,1804.4,0.051]
[1680584863598,5.98965218,1804.8,1804.2,10.46488358]
[1680584863799,5.99785534,1804.8,1804.2,9.69552154]
[1680584865376,5.99785534,1804.8,1804.2,9.70560715]
[1680584868310,5.99785534,1804.8,1804.2,11.90560715]
[1680584868505,5.99785534,1804.8,1804.3,1.19056071]
[1680584869030,3.01020316,1804.8,1804.3,1.41225071]
[1680584869204,3.22983316,1804.8,1804.3,1.41225071]
[1680584869401,3.22983316,1804.8,1804.3,1.19056071]
[1680584870421,0.51522224,1804.7,1804.3,1.19056071]
[1680584870587,0.5234254,1804.7,1804.4,0.11905607]
[1680584872121,0.5234254,1804.7,1804.4,0.81305607]
[1680584876183,1.08831576,1804.7,1804.4,0.81305607]
[1680584876624,1.08831576,1804.7,1804.5,0.025]
[1680584877559,1.0801126,1804.7,1804.5,0.025]
[1680584887083,1.07777988,1804.7,1804.5,0.025]
[1680584889264,1.07777988,1804.7,1804.5,0.09790845]
[1680584891121,1.07777988,1804.7,1804.5,0.31956845]
[1680584891316,1.07777988,1804.7,1804.5,0.07290845]
[1680584891659,1.07777988,1804.7,1804.6,0.01008336]
[1680584913392,1.07777988,1804.7,1804.3,2.32824071]
[1680584913695,1.07777988,1804.7,1804.3,1.13768]
[1680584914094,1.07777988,1804.7,1804.3,0.916]
[1680584914250,1.07777988,1804.7,1804.3,1.13769]
[1680584919878,1.07777988,1804.7,1804.4,0.01008449]
[1680584920182,1.07777988,1804.7,1804.4,0.23175449]
[1680584924005,1.07777988,1804.7,1804.3,1.13768]
[1680584927425,0.51288952,1804.7,1804.3,1.13768]
[1680584932538,1.07348982,1804.7,1804.3,1.13768]
[1680584932703,0.51288952,1804.7,1804.3,1.13768]
[1680584933158,2.0531199,1804.7,1804.3,1.13768]
[1680584933374,0.51288952,1804.7,1804.3,1.13768]
[1680584935303,0.51288952,1804.7,1804.3,1.58106]
[1680584939635,1.0642275,1804.7,1804.3,1.58106]
[1680584939793,0.51288952,1804.7,1804.3,1.58106]
[1680584942533,6.5989117,1804.7,1804.3,1.13768]
[1680584942831,6.6009117,1804.7,1804.3,1.13768]
[1680584943693,7.14389503,1804.7,1804.3,1.13768]
[1680584945832,7.14389503,1804.7,1804.3,1.58106]
[1680584947544,1.05787285,1804.7,1804.3,1.58106]
[1680584947749,1.05587285,1804.7,1804.3,1.58106]
[1680584948059,1.05587285,1804.7,1804.5,0.22166]
[1680584950238,1.05587285,1804.7,1804.5,0.22166]
[1680584953198,1.05587285,1804.7,1804.4,0.66501]
[1680584958715,1.05587285,1804.7,1804.4,0.22166]
[1680584979066,1.05587285,1804.7,1804.3,0.92608505]
[1680584979359,1.05587285,1804.7,1804.3,0.006]
[1680584979360,4.40010279,1804.7,1804.3,0.006]
[1680584979660,0.44001028,1804.6,1804.3,0.006]
[1680584980353,0.513774,1804.5,1804.2,2.42769]
[1680584981238,0.513774,1804.5,1804.2,2.4277]
[1680584981444,7.43085327,1804.7,1804.2,2.4277]
[1680584984315,7.20921327,1804.7,1804.2,2.4277]
[1680584990355,0.51400324,1804.6,1804.2,2.4277]
[1680584990640,0.51400324,1804.6,1804.2,2.83224733]
[1680584991337,7.20921327,1804.7,1804.2,2.83224733]
[1680584991540,7.20921327,1804.7,1804.2,2.4277]
[1680584993360,3.31100551,1804.7,1804.2,3.7811]
[1680584993502,3.30900551,1804.7,1804.2,3.7811]
[1680584996344,0.54298333,1804.7,1804.2,3.7811]
[1680584996548,19.45133274,1804.8,1804.2,4.94335709]
[1680584996702,19.45133274,1804.8,1804.2,5.67187821]
[1680584996703,22.21735492,1804.8,1804.2,5.67187821]
[1680584996899,22.21735492,1804.8,1804.3,0.01008505]
[1680584997107,22.21735492,1804.8,1804.4,0.22167]
[1680585000827,23.66044422,1804.8,1804.4,0.22167]
[1680585002171,22.97344422,1804.8,1804.4,0.22167]
[1680585003750,21.53035492,1804.8,1804.4,0.22167]
[1680585003956,22.97344422,1804.8,1804.4,0.22167]
[1680585004496,16.88742204,1804.8,1804.4,0.22167]
[1680585004662,15.44433274,1804.8,1804.3,0.68113505]
[1680585005329,0.50748696,1804.7,1804.3,0.23776505]
[1680585005530,0.50748696,1804.7,1804.3,1.29502938]
[1680585005764,0.50748696,1804.7,1804.3,1.07334938]
[1680585005975,0.50748696,1804.7,1804.3,1.29502938]
[1680585006140,0.50748696,1804.7,1804.3,1.07334938]
[1680585006341,0.50748696,1804.7,1804.3,1.29502938]
[1680585006557,0.50748696,1804.7,1804.4,0.12950294]
[1680585006736,0.50748696,1804.7,1804.4,0.35117294]
[1680585007238,0.50748696,1804.7,1804.4,0.12950294]
[1680585010185,1.0723573,1804.7,1804.4,0.12950294]
[1680585010387,0.50748696,1804.7,1804.4,0.12950294]
[1680585011805,0.50748696,1804.7,1804.4,0.35117294]
[1680585011958,0.50748696,1804.7,1804.4,0.79453294]
[1680585012157,0.50748696,1804.7,1804.5,0.07945329]
[1680585012502,0.50748696,1804.7,1804.5,0.30111329]
[1680585013011,0.50748696,1804.7,1804.5,0.07945329]
[1680585013357,0.71671065,1804.9,1804.5,0.07945329]
[1680585013563,0.71671065,1804.9,1804.5,0.22166]
[1680585013996,0.71671065,1804.9,1804.5,1.13166]
[1680585014154,0.71671065,1804.9,1804.5,0.22166]
[1680585014781,0.13850289,1804.9,1804.5,0.66499]
[1680585015008,0.13600839,1804.9,1804.5,1.57499]
[1680585015163,0.13600839,1804.9,1804.6,0.157499]
[1680585015363,0.13600839,1804.9,1804.6,0.379139]
[1680585016262,0.13600839,1804.9,1804.6,0.822449]
[1680585019561,0.13600839,1804.9,1804.6,0.66495]
[1680585020471,0.50953402,1804.8,1804.6,0.66495]
[1680585021405,0.13600839,1804.9,1804.6,0.66495]
[1680585023729,0.13600839,1804.9,1804.6,0.22164]
[1680585031332,2.76602218,1804.8,1804.5,0.006]
[1680585031513,2.76602218,1804.8,1804.4,0.22767]
[1680585032123,2.76602218,1804.8,1804.4,0.22567]
[1680585032294,7.94702218,1804.8,1804.4,1.57903]
[1680585032508,7.94902218,1804.8,1804.5,0.379553]
[1680585032726,7.94902218,1804.8,1804.5,0.22165]
[1680585035383,0.47928574,1804.7,1804.5,0.22165]
[1680585039322,18.49880776,1805.0,1804.5,0.22165]
[1680585039558,21.26482994,1805.0,1804.5,0.22165]
[1680585039717,21.26482994,1805.0,1804.5,0.28915845]
[1680585040111,21.40085337,1805.0,1804.5,0.28915845]
[1680585041588,6.08602218,1804.9,1804.4,0.23775449]
[1680585041892,6.08802218,1804.9,1804.4,0.23775449]
[1680585042498,6.30963218,1804.9,1804.4,0.01608449]
[1680585042731,6.08802218,1804.9,1804.4,0.23175449]
[1680585043444,6.08802218,1804.9,1804.4,0.67511449]
[1680585043759,6.08802218,1804.9,1804.4,0.74322594]
[1680585044444,6.08802218,1804.9,1804.4,0.74522594]
[1680585045236,6.08802218,1804.9,1804.4,0.74322594]
[1680585048261,6.08802218,1804.9,1804.4,0.74522594]
[1680585048743,6.08802218,1804.9,1804.4,0.74322594]
[1680585049402,6.08802218,1804.9,1804.4,0.74522594]
[1680585049815,6.08802218,1804.9,1804.4,0.74322594]
[1680585050444,3.79933482,1804.8,1804.5,0.07432259]
[1680585050649,3.79933482,1804.8,1804.6,0.22165]
[1680585053754,3.79933482,1804.8,1804.5,0.29597259]
[1680585059470,0.47933482,1804.8,1804.5,0.29597259]
[1680585060468,6.66622994,1804.9,1804.5,0.73930259]
[1680585061664,6.08802218,1804.9,1804.5,0.73930259]
[1680585062458,6.08802218,1804.9,1804.5,0.29597259]
[1680585064448,6.66622994,1804.9,1804.5,0.29597259]
[1680585065437,0.47777159,1804.8,1804.5,0.29597259]
[1680585066478,6.66622994,1804.9,1804.5,0.29597259]
[1680585080459,0.55754633,1804.8,1804.5,0.29597259]
[1680585081587,6.66622994,1804.9,1804.5,0.29597259]
[1680585082901,1.54015543,1804.8,1804.5,0.29597259]
[1680585083062,6.66622994,1804.9,1804.5,0.29597259]
[1680585087200,6.66622994,1804.9,1804.4,0.01608449]
[1680585087404,6.88784994,1804.9,1804.4,0.01608449]
[1680585087599,6.88784994,1804.9,1804.4,0.23175449]
[1680585087600,6.66622994,1804.9,1804.4,0.23175449]
[1680585087811,6.88784994,1804.9,1804.4,0.23375449]
[1680585088020,6.66622994,1804.9,1804.4,0.23375449]
[1680585088726,6.66622994,1804.9,1804.4,0.23575449]
[1680585088904,6.66622994,1804.9,1804.4,0.42209365]
[1680585095539,0.55963843,1804.8,1804.4,0.42209365]
[1680585096350,6.66622994,1804.9,1804.4,0.42209365]
[1680585096652,1.54015122,1804.8,1804.4,0.42209365]
[1680585097952,7.53411477,1804.9,1804.4,0.42209365]
[1680585098162,0.96193652,1804.8,1804.4,0.42209365]
[1680585102880,7.0479587,1804.8,1804.4,0.20042365]
[1680585103180,6.93762731,1804.8,1804.4,0.22767]
[1680585104648,7.51583507,1804.8,1804.4,0.22767]
[1680585106290,6.66622994,1804.8,1804.4,0.22767]
[1680585106890,6.08802218,1804.8,1804.4,0.22767]
[1680585108291,2.76602218,1804.7,1804.4,0.006]
[1680585108493,0.01005227,1804.6,1804.2,11.59959]
[1680585108705,0.01005227,1804.6,1804.3,1.85284342]
[1680585110483,0.55895224,1804.5,1804.3,1.85284342]
[1680585111459,0.55895224,1804.5,1804.3,2.07453342]
[1680585111804,0.55895224,1804.5,1804.4,0.20745334]
[1680585112370,6.08802218,1804.7,1804.4,0.20745334]
[1680585112777,6.65111816,1804.7,1804.4,0.20745334]
[1680585114363,6.65111816,1804.7,1804.3,2.07453342]
[1680585114799,6.65111816,1804.7,1804.3,1.85284342]
[1680585115596,6.65111816,1804.7,1804.3,2.07453342]
[1680585116264,6.65111816,1804.7,1804.3,1.85284342]
[1680585116772,6.65111816,1804.7,1804.3,2.07453342]
[1680585119258,6.65111816,1804.7,1804.3,1.85284342]
[1680585119513,6.65111816,1804.7,1804.3,2.07453342]
[1680585120692,6.65111816,1804.7,1804.3,1.85284342]
[1680585121722,6.65111816,1804.7,1804.3,2.07453342]
[1680585125521,0.58740452,1804.6,1804.3,2.07453342]
[1680585125693,0.58740452,1804.6,1804.4,0.20745334]
[1680585125893,0.58740452,1804.6,1804.3,2.07453342]
[1680585126419,6.65111816,1804.7,1804.3,2.07453342]
[1680585134335,6.65111816,1804.7,1804.3,0.22169]
[1680585140599,0.61602703,1804.6,1804.3,0.22169]
[1680585141569,6.65111816,1804.7,1804.3,0.22169]
[1680585148112,0.56294169,1804.7,1804.3,1.55584]
[1680585148405,6.38173119,1805.0,1804.5,0.66499]
[1680585148612,9.14775337,1805.0,1804.5,0.66499]
[1680585148822,9.15595653,1805.0,1804.5,0.66499]
[1680585149111,9.15595653,1805.0,1804.5,2.51624709]
[1680585149112,0.13802343,1805.0,1804.5,2.51624709]
[1680585149274,0.13602343,1805.0,1804.7,0.66492]
[1680585149478,13.76935543,1805.1,1804.7,0.66492]
[1680585149804,16.53537761,1805.1,1804.7,0.66492]
[1680585150981,16.67584039,1805.1,1804.7,0.66492]
[1680585151304,16.67584039,1805.1,1804.8,0.288112]
[1680585155616,0.78132796,1805.0,1804.8,0.288112]
[1680585161608,0.78132796,1805.0,1804.8,0.731372]
[1680585169612,0.77852191,1805.0,1804.8,0.733372]
[1680585169817,0.77852191,1805.0,1804.8,0.731372]
[1680585170712,0.77509283,1805.0,1804.8,0.731372]
[1680585170914,0.77509283,1805.0,1804.9,0.0731372]
[1680585171225,0.77509283,1805.0,1804.9,0.2947472]
[1680585174824,0.77509283,1805.0,1804.9,0.0731372]
[1680585175150,0.77509283,1805.0,1804.9,0.2947472]
[1680585175650,0.77509283,1805.0,1804.9,0.0731372]
[1680585176152,0.77509283,1805.0,1804.9,0.2947472]
[1680585179655,0.77509283,1805.0,1804.8,0.288102]
[1680585180946,0.72509283,1805.0,1804.8,0.288102]
[1680585182711,0.67509283,1805.0,1804.8,0.288102]
[1680585187777,0.67509283,1805.0,1804.8,0.731362]
[1680585192662,0.67509283,1805.0,1804.8,0.731362]
[1680585208832,0.67240785,1805.0,1804.8,0.731362]
[1680585215253,0.67240785,1805.0,1804.9,0.0731362]
[1680585215541,0.67240785,1805.0,1804.9,0.2947462]
[1680585221557,0.67240785,1805.0,1804.9,0.22161]
[1680585222415,0.67240785,1805.0,1804.9,0.66484]
[1680585229459,0.67240785,1805.0,1804.9,0.22161]
[1680585231664,0.66985224,1805.0,1804.9,0.22161]
[1680585246630,0.66985224,1805.0,1804.9,0.21839889]
[1680585259078,0.66985224,1805.0,1804.9,0.29121298]
[1680585259343,0.002,1805.2,1805.1,1.55114]
[1680585259552,0.00579051,1805.3,1805.1,1.55114]
[1680585259553,0.58841092,1805.6,1805.1,3.55915388]
[1680585259692,11.14251093,1805.7,1805.2,0.689]
[1680585259892,10.56151266,1805.7,1805.2,0.689]
[1680585260199,3.32,1805.6,1805.2,0.66473]
[1680585260396,4.72776262,1805.6,1805.1,0.914]
[1680585260601,4.72776262,1805.6,1805.2,0.22157]
[1680585261245,4.72776262,1805.6,1805.1,1.12958]
[1680585261449,0.47277626,1805.5,1805.1,1.12958]
[1680585261651,0.47277626,1805.5,1805.1,1.57276]
[1680585261991,0.47277626,1805.5,1805.1,0.66476]
[1680585262742,0.47277626,1805.5,1805.1,0.6775689]
[1680585264211,4.03976262,1805.6,1805.1,0.6775689]
[1680585264411,6.8057848,1805.6,1805.1,0.6775689]
[1680585264611,6.8077848,1805.6,1805.1,0.6775689]
[1680585265652,6.8077848,1805.6,1805.1,1.5855689]
[1680585269652,0.72176262,1805.6,1805.1,1.5855689]
[1680585269856,0.71976262,1805.6,1805.2,0.15855689]
[1680585270153,0.71976262,1805.6,1805.3,0.66469]
[1680585273747,0.71976262,1805.6,1805.3,0.22156]
[1680585280115,0.71976262,1805.6,1805.3,0.23436748]
[1680585280468,0.71661578,1805.6,1805.3,0.23636748]
[1680585280669,0.71661578,1805.6,1805.3,0.39094723]
[1680585283524,0.71661578,1805.6,1805.3,0.83407723]
[1680585286416,0.71661578,1805.6,1805.3,0.37813975]
[1680585298688,0.71661578,1805.6,1805.3,0.82126975]
[1680585298928,0.71661578,1805.6,1805.4,0.08212698]
[1680585299123,0.71661578,1805.6,1805.4,0.30366698]
[1680585301732,0.71661578,1805.6,1805.4,2.50366698]
[1680585306800,0.71428255,1805.6,1805.5,1.56515242]
[1680585307149,0.71428255,1805.6,1805.5,5.24284535]
[1680585307341,0.71428255,1805.6,1805.5,6.22959281]
[1680585307495,0.71428255,1805.6,1805.5,12.34172708]
[1680585307709,0.71428255,1805.6,1805.5,15.34172708]
[1680585308303,0.71428255,1805.6,1805.5,23.62874926]
[1680585308536,0.71428255,1805.6,1805.5,22.17571511]
[1680585308738,0.71428255,1805.6,1805.5,24.78546303]
[1680585309049,0.71428255,1805.6,1805.5,23.62557507]
[1680585309602,0.11000001,1805.7,1805.5,23.62557507]
[1680585309925,0.11000001,1805.7,1805.6,16.1739399]
[1680585310131,0.11000001,1805.7,1805.6,16.1819399]
[1680585310342,0.11000001,1805.7,1805.6,16.19474525]
[1680585310543,0.11000001,1805.7,1805.6,15.03486404]
[1680585311546,0.11000001,1805.7,1805.6,15.32483407]
[1680585312330,0.11000001,1805.7,1805.6,15.03420655]
[1680585312641,0.11000001,1805.7,1805.6,18.49222873]
[1680585314087,0.11000001,1805.8,1805.7,7.67022287]
[1680585314289,0.11000001,1805.8,1805.7,19.45778051]
[1680585314493,0.11000001,1805.8,1805.7,19.49708505]
[1680585314845,0.11000001,1805.8,1805.7,24.46948505]
[1680585315489,0.6657038,1805.8,1805.7,12.97626287]
[1680585318658,0.6657038,1805.8,1805.7,21.56328505]
[1680585319080,0.6657038,1805.8,1805.7,12.28226287]
[1680585319294,0.6657038,1805.8,1805.7,1.57456]
[1680585319471,0.6657038,1805.8,1805.7,1.57256]
[1680585319661,0.6657038,1805.8,1805.7,0.66456]
[1680585319997,0.6657038,1805.8,1805.7,1.57256]
[1680585324256,0.6657038,1805.8,1805.7,9.25158218]
[1680585324540,0.6657038,1805.8,1805.7,15.63312993]
[1680585325636,0.11000001,1805.8,1805.7,15.63312993]
[1680585325802,0.11000001,1805.8,1805.7,20.20582993]
[1680585329799,0.11000001,1805.8,1805.7,55.20582993]
[1680585329997,0.11000001,1805.8,1805.7,55.43582993]
[1680585333352,1e-08,1805.8,1805.7,55.43582993]
[1680585334140,1e-08,1805.8,1805.7,56.30452539]
[1680585334439,1e-08,1805.8,1805.7,55.43582993]
[1680585336358,1e-08,1805.8,1805.7,56.30452539]
[1680585336505,1e-08,1805.8,1805.7,55.43582993]
[1680585336902,1e-08,1805.8,1805.7,56.58167452]
[1680585339050,1e-08,1805.8,1805.7,57.12660134]
[1680585342017,1e-08,1805.8,1805.7,57.81660134]
[1680585342316,1e-08,1805.8,1805.7,58.97505607]
[1680585343918,1e-08,1805.8,1805.7,58.10778709]
[1680585346348,1e-08,1805.8,1805.7,58.39776584]
[1680585350248,1e-08,1805.8,1805.7,56.94790588]
[1680585352188,1e-08,1805.8,1805.7,55.56090588]
[1680585352390,1e-08,1805.8,1805.7,57.3013648]
[1680585355306,0.11000001,1805.9,1805.8,1.55452659]
[1680585355466,0.11000001,1805.9,1805.8,22.11468733]
[1680585355668,0.11000001,1805.9,1805.8,26.02468733]
[1680585355906,0.11000001,1805.9,1805.8,61.02468733]
[1680585358808,0.11000001,1805.9,1805.8,61.03749126]
[1680585362211,0.11000001,1805.9,1805.8,61.72849126]
[1680585362409,0.11000001,1805.9,1805.8,63.46895018]
[1680585363327,0.11000001,1805.9,1805.8,61.72849126]
[1680585363478,0.11000001,1805.9,1805.8,63.46895018]
[1680585368921,0.11000001,1805.9,1805.8,28.46895018]
[1680585369070,0.11000001,1805.9,1805.8,26.72849126]
[1680585369290,0.11000001,1805.9,1805.8,25.34449126]
[1680585369502,0.11000001,1805.9,1805.8,16.80652659]
[1680585369830,0.11000001,1805.9,1805.8,2.07467349]
[1680585369999,0.11000001,1805.9,1805.8,2.07267349]
[1680585370198,0.11000001,1805.9,1805.8,2.29417349]
[1680585370604,0.63419223,1805.9,1805.8,2.29417349]
[1680585371304,0.63419223,1805.9,1805.8,2.73718349]
[1680585372193,0.63419223,1805.9,1805.8,3.60768448]
[1680585372394,0.63419223,1805.9,1805.8,2.73718349]
[1680585372973,0.63419223,1805.9,1805.8,3.60772475]
[1680585373234,0.63419223,1805.9,1805.8,3.60772466]
[1680585373596,0.63419223,1805.9,1805.8,2.44703776]
[1680585374598,0.63419223,1805.9,1805.8,3.60772466]
[1680585374834,0.63419223,1805.9,1805.8,2.44703776]
[1680585375140,0.63419223,1805.9,1805.8,2.00402776]
[1680585375744,0.63419223,1805.9,1805.8,2.44703776]
[1680585378622,0.63169534,1805.9,1805.8,2.44703776]
[1680585380625,0.49712699,1805.9,1805.8,2.44703776]
[1680585382164,0.49712699,1805.9,1805.8,2.80801023]
[1680585382363,0.49712699,1805.9,1805.8,3.96869713]
[1680585383540,0.49712699,1805.9,1805.8,3.09815596]
[1680585383864,0.49712699,1805.9,1805.8,11.68517814]
[1680585384167,0.49712699,1805.9,1805.8,19.27749124]
[1680585384325,0.49712699,1805.9,1805.8,19.55464037]
[1680585384530,0.10750312,1805.9,1805.8,19.55464037]
[1680585384756,0.10750312,1805.9,1805.8,19.56064037]
[1680585385520,0.10750312,1805.9,1805.8,19.5734443]
[1680585385862,0.10750312,1805.9,1805.8,21.31390322]
[1680585386166,0.10750312,1805.9,1805.8,22.70190322]
[1680585387268,0.10750312,1805.9,1805.8,22.52990322]
[1680585388885,0.10750312,1805.9,1805.8,21.31390322]
[1680585389176,0.10750312,1805.9,1805.8,21.31259038]
[1680585390291,0.10750312,1805.9,1805.8,19.5734443]
[1680585391278,0.10750312,1805.9,1805.8,54.5734443]
[1680585391483,0.10750312,1805.9,1805.8,56.31224998]
[1680585391983,0.10750312,1805.9,1805.8,54.5734443]
[1680585394985,0.10750312,1805.9,1805.8,55.7994443]
[1680585395300,0.11820317,1806.6,1806.0,5.821]
[1680585395503,0.11000001,1806.9,1806.6,5.821]
[1680585395727,0.11000001,1806.9,1806.8,10.13671218]
[1680585395890,0.11000001,1806.9,1806.8,11.00726072]
[1680585396089,0.11000001,1806.9,1806.8,16.67458426]
[1680585396289,0.11000001,1806.9,1806.8,17.83264898]
[1680585396505,0.47727263,1806.9,1806.8,17.83264898]
[1680585396851,0.47727263,1806.9,1806.8,17.83464898]
[1680585397121,0.47727263,1806.9,1806.8,17.83664898]
[1680585397276,0.47727263,1806.9,1806.8,15.81203572]
[1680585399021,0.47727263,1806.9,1806.8,15.82483257]
[1680585400484,0.47727263,1806.9,1806.8,17.58581273]
[1680585401028,0.47727263,1806.9,1806.8,17.57981273]
[1680585401183,0.47727263,1806.9,1806.8,17.58181273]
[1680585401384,0.47727263,1806.9,1806.8,17.58581273]
[1680585401691,0.11000001,1806.9,1806.8,52.58581273]
[1680585402486,0.11000001,1807.0,1806.9,11.07958127]
[1680585402725,0.003,1807.7,1806.9,11.07958127]
[1680585402726,0.008,1807.7,1806.9,33.09673199]
[1680585402893,1.1111045,1808.0,1807.4,5.821]
[1680585403098,1.1141045,1808.0,1807.6,5.821]
[1680585403306,0.11800001,1808.0,1807.7,10.13592218]
[1680585403523,0.11800001,1808.0,1807.7,12.0597144]
[1680585403691,0.34811532,1807.9,1807.7,11.1517144]
[1680585404039,0.35611532,1807.9,1807.8,1.57178]
[1680585404187,0.30611532,1807.9,1807.8,1.57378]
[1680585404390,0.29811532,1807.9,1807.8,11.36497062]
[1680585404644,0.38263638,1807.9,1807.8,11.36697062]
[1680585404941,0.38263638,1807.9,1807.8,11.36897062]
[1680585405249,0.38263638,1807.9,1807.8,14.36897062]
[1680585405386,0.38263638,1807.9,1807.8,14.37297062]